{"text_format":"3","workbook":"xlsx","n_sheets":1,"sheets":["Račun"],"not_rendered":{"defined_names":6},"read":"whole","date_system":"1900"}

{"sheet":"Račun","index":0,"n_rows":26,"n_cols":7,"rows_kept":26,"merged":[[0,1,0,2],[1,1,1,2],[1,3,1,4],[1,5,1,6],[2,1,2,2],[2,3,2,4],[2,5,2,6],[3,1,3,2],[3,3,3,4],[4,1,4,2],[4,3,4,4],[5,3,5,4],[24,1,24,4],[25,1,25,4]]}
[null,"Ime podjetja"]
[null,"Poštni naslov",null,"Telefon: Telefonska številka",null,"E-poštni naslov"]
[null,"Mesto, koda države",null,"Faks: Številka faksa",null,"Spletno mesto"]
[null,"Plačnik računa:",null,{"$f":"\"Telefon:   \"","v":"Telefon:   "},null,"Št. računa:"]
[null,"Naslov:",null,{"$f":"\"Faks:    \"","v":"Faks:    "},null,"Datum računa:"]
[{"$nulls":3},{"$f":"\"E-poštni naslov:   \"","v":"E-poštni naslov:   "}]
[null,{"$f":"\"Račun za: \"","v":"Račun za: "}]
[null,"Št. elementa","Opis","Količina","Cena enote","Popust","Cena"]
[{"$nulls":6},{"$f":"IFERROR((D9*E9)-F9,\"\")","v":0}]
[{"$nulls":6},0]
[{"$nulls":6},0]
[{"$nulls":6},0]
[{"$nulls":6},0]
[{"$nulls":6},0]
[{"$nulls":6},0]
[{"$nulls":6},0]
[{"$nulls":6},0]
[{"$nulls":6},0]
[{"$nulls":6},0]
[{"$nulls":6},0]
[{"$nulls":5},"Delna vsota računa",{"$f":"SUM(PreprostRačun[Cena])","v":0}]
[{"$nulls":5},"Davčna stopnja"]
[{"$nulls":5},"Prometni davek",{"$f":"IFERROR(G21*G22,\"\")","v":0}]
[{"$nulls":5},"Drugo"]
[null,{"$f":"\"Vsi čeki naj bodo izstavljeni na \"&ime_podjetja&\".\"","v":"Vsi čeki naj bodo izstavljeni na Ime podjetja."},{"$nulls":3},"Prejeto predplačilo"]
[null,"Rok plačila skupnega zneska čez toliko dni: <#>. Pridržujemo si pravico, da zapadlim računom dodamo strošek storitve, ki znaša <#>% na mesec.",{"$nulls":3},"VSOTA",{"$f":"IFERROR((G21+G23+G24)-G25,\"\")","v":0}]